fUSD/lending_fUSD_20260408
["ID","MTS","AMOUNT","RATE_DAILY","PERIOD"]
[420015897,1775616641224,-219.0,0.00011598,2]
[420015898,1775616641233,-535.03557808,0.000116,2]
[420015899,1775616641243,-601.14805707,0.000116,2]
[420015900,1775616641252,-299.23234237,0.000116,2]
[420015901,1775616641262,-583.28219599,0.000116,2]
[420015902,1775616641271,-1300.0,0.000116,4]
[420015903,1775616641280,-1132.0,0.00011603,2]
[420015904,1775616641290,-696.0,0.00011613,2]
[420015905,1775616641299,-310.8644,0.00011621,2]
[420015906,1775616641308,-2500.0,0.00011622,2]
[420015907,1775616641318,-1074.81982342,0.00011622,2]
[420015908,1775616641327,-150.0,0.00011625,2]
[420015909,1775616641336,-150.0,0.00011625,2]
[420015910,1775616641345,-150.0,0.00011625,2]
[420015911,1775616641354,-188.34372111,0.00011625,2]
[420015912,1775616641364,-500.0,0.00011625,2]
[420015913,1775616641373,-500.0,0.00011625,2]
[420015914,1775616641383,-500.0,0.00011625,2]
[420015915,1775616641392,-500.0,0.00011625,2]
[420015916,1775616641401,-500.0,0.00011625,2]
[420015917,1775616641411,-500.0,0.00011625,2]
[420015918,1775616641420,-500.0,0.00011625,2]
[420015919,1775616641429,-500.0,0.00011625,2]
[420015920,1775616641438,-500.0,0.00011625,2]
[420015921,1775616641447,-500.0,0.00011625,2]
[420015922,1775616641456,-500.0,0.00011625,2]
[420015923,1775616641466,-381.23774932,0.00011625,2]
[420015924,1775616641475,-1498.0,0.00011626,2]
[420015925,1775616641484,-1001.50560966,0.00011648,2]
[420015926,1775616641493,-1102.0,0.00011649,2]
[420015927,1775616641503,-150.39907194,0.00011662,2]
[420015928,1775616641511,-150.0,0.000117,2]
[420015929,1775616641521,-9999.99,0.000117,2]
[420015930,1775616641530,-14148.83,0.000117,2]
[420015931,1775616641539,-12703.13,0.000117,2]
[420015932,1775616641548,-2600.0,0.000117,4]
[420015933,1775616641557,-500.0,0.00011715,2]
[420015934,1775616641566,-500.0,0.00011715,2]
[420015935,1775616641576,-500.0,0.00011715,2]
[420015936,1775616641584,-500.0,0.00011715,2]
[420015937,1775616641594,-500.0,0.00011715,2]
[420015938,1775616641603,-500.0,0.00011715,2]
[420015939,1775616641612,-500.0,0.00011715,2]
[420015940,1775616641621,-500.0,0.00011715,2]
[420015941,1775616641631,-500.0,0.00011715,2]
[420015942,1775616641640,-519.36289267,0.00011715,2]
[420015943,1775616641649,-200.0,0.00011715,2]
[420015944,1775616641658,-501.50073946,0.00011715,2]
[420015945,1775616641667,-151.0,0.00011715,2]
[420015946,1775616641675,-151.0,0.00011715,2]
[420015947,1775616641684,-200.0,0.00011721,2]
[420015948,1775616641694,-371.0,0.00011721,2]
[420015949,1775616641703,-1054.68099591,0.00011721,3]
[420015950,1775616641712,-1117.02022931,0.00011721,3]
[420015951,1775616641721,-1117.02022931,0.00011721,3]
[420015952,1775616641730,-155.355,0.00011721,2]
[420015953,1775616641740,-636.29,0.00011721,2]
[420015954,1775616641749,-276.0,0.00011721,2]
[420015955,1775616641758,-10144.2676,0.00011722,2]
[420015956,1775616641767,-1000.0,0.00011722,2]
[420015957,1775616641776,-4706.7984,0.00011722,2]
[420015958,1775616641785,-200.0,0.00011722,2]
[420015959,1775616641795,-289.62,0.00011769,2]
[420015960,1775616641804,-500.0,0.00011773,2]
[420015961,1775616641813,-500.87166627,0.00011773,2]
[420015962,1775616641823,-500.53661767,0.00011773,2]
[420015963,1775616641832,-500.0,0.00011773,2]
[420015964,1775616641841,-579.25,0.00011773,2]
[420015965,1775616641850,-289.62,0.00011776,2]
[420015966,1775616641860,-244.88977056,0.00011786,2]
[420015967,1775616641870,-500.0,0.00011795,2]
[420015968,1775616641880,-160.46055702,0.000118,2]
[420015969,1775616641889,-3900.0,0.000118,4]
[420015970,1775616641898,-421.73,0.00011818,2]
[420015971,1775616641907,-12373.02683027,0.00011886,2]
[420015972,1775616641916,-5200.0,0.000119,4]
[420015973,1775616641926,-636.29,0.00011995,2]
[420015974,1775616641935,-221.0,0.00012038,2]
[420015975,1775616641944,-807.0,0.00012045,2]
[420015976,1775616641953,-500.0,0.00012069,2]
[420015977,1775616641962,-9999.99,0.00012087,2]
[420015978,1775616641971,-9999.99,0.00012087,2]
[420015979,1775616641981,-150.99,0.00012087,2]
[420015980,1775616641990,-999.99,0.00012087,2]
[420015981,1775616641999,-1138.4,0.00012087,2]
[420015982,1775616642008,-499.99,0.00012087,2]
[420015983,1775616642017,-299.99,0.00012087,2]
[420015984,1775616642026,-150.99,0.00012087,2]
[420015985,1775616642035,-500.54232895,0.00012121,2]
[420015986,1775616642045,-1000.0,0.00012121,2]
[420015987,1775616642055,-1000.0,0.00012121,2]
[420015988,1775616642064,-1000.0,0.00012121,2]
[420015989,1775616642073,-1000.0,0.00012121,2]
[420015990,1775616642082,-500.0,0.00012121,2]
[420015991,1775616642091,-1000.0,0.00012121,2]
[420015992,1775616642100,-600.0,0.00012124,2]
[420015993,1775616642109,-5000.0,0.00012124,2]
[420015994,1775616642118,-195.0,0.00012124,2]
[420015995,1775616642127,-193.41865489,0.00012124,2]
[420015996,1775616642136,-300.60862761,0.00012124,2]
[420015997,1775616642145,-250.0,0.00012124,2]
[420015998,1775616642154,-408.13,0.00012164,2]
[420015999,1775616642163,-581.56247861,0.0001221,2]
[420016000,1775616642172,-195.0,0.00012222,2]
[420016001,1775616642181,-606.11742291,0.00012222,2]
[420016002,1775616642190,-195.473071,0.00012256,2]
[420016003,1775616642200,-160.0,0.00012256,2]
[420016004,1775616642209,-536.36848,0.00012256,2]
[420016005,1775616642218,-912.73696,0.00012256,2]
[420016006,1775616642227,-160.0,0.00012256,2]
[420016007,1775616642237,-1074.395618,0.00012256,2]
[420016008,1775616642246,-1988.791236,0.00012256,2]
[420016009,1775616642255,-251.977004,0.00012256,2]
[420016010,1775616642265,-636.29,0.00012269,2]
[420016011,1775616642274,-2000.0,0.00012288,2]
[420016012,1775616642283,-160.0,0.00012302,2]
[420016013,1775616642292,-226.327551,0.00012302,2]
[420016014,1775616642302,-292.655103,0.00012302,2]
[420016015,1775616642312,-150.0,0.00012304,2]
[420016016,1775616642321,-150.11484194,0.00012304,2]
[420016017,1775616642331,-150.0,0.00012304,2]
[420016018,1775616642340,-150.0,0.00012304,2]
[420016019,1775616642349,-150.12907206,0.00012304,2]
[420016020,1775616642358,-150.0,0.00012304,2]
[420016021,1775616642367,-150.0,0.00012304,2]
[420016022,1775616642376,-150.0,0.00012304,2]
[420016023,1775616642384,-150.0,0.00012304,2]
[420016024,1775616642394,-150.0,0.00012304,2]
[420016025,1775616642403,-150.0,0.00012304,2]
[420016026,1775616642412,-150.0,0.00012304,2]
[420016027,1775616642422,-150.13966067,0.00012304,2]
[420016028,1775616642431,-150.0,0.00012304,2]
[420016029,1775616642441,-150.0,0.00012304,2]
[420016030,1775616642450,-1000.0,0.00012321,2]
[420016031,1775616642459,-1000.0,0.00012321,2]
[420016032,1775616642468,-200.0,0.00012321,2]
[420016033,1775616642477,-200.0,0.00012321,2]
[420016034,1775616642487,-150.0,0.00012341,2]
[420016035,1775616642496,-500.0,0.00012343,2]
[420016036,1775616642506,-150.0,0.00012347,2]
[420016037,1775616642515,-150.0,0.00012348,2]
[420016038,1775616642524,-12373.02683027,0.0001235,2]
[420016039,1775616642534,-229.31,0.0001236,2]
[420016040,1775616642543,-150.0,0.00012366,2]
[420016041,1775616642552,-150.0,0.00012366,2]
[420016042,1775616642561,-150.0,0.00012372,2]
[420016043,1775616642570,-150.0,0.00012378,2]
[420016044,1775616642579,-150.0,0.0001239,2]
[420016045,1775616642588,-150.0,0.00012392,2]
[420016046,1775616642597,-387.0,0.00012395,2]
[420016047,1775616642607,-1680.0,0.0001241,2]
[420016048,1775616642616,-150.0,0.00012415,2]
[420016049,1775616642626,-150.0,0.00012418,2]
[420016050,1775616642635,-150.0,0.00012418,2]
[420016051,1775616642644,-150.0,0.00012428,2]
[420016052,1775616642653,-150.0,0.00012428,2]
[420016053,1775616642663,-150.0,0.00012432,2]
[420016054,1775616642672,-150.0,0.00012436,2]
[420016055,1775616642681,-150.0,0.00012441,2]
[420016056,1775616642691,-150.0,0.00012452,2]
[420016057,1775616642700,-150.0,0.00012475,2]
[420016058,1775616642710,-150.0,0.00012481,2]
[420016059,1775616642719,-150.0,0.00012489,2]
[420016060,1775616642728,-150.0,0.00012491,2]
[420016061,1775616642737,-150.0,0.00012491,2]
[420016062,1775616642747,-150.0,0.00012499,2]
[420016063,1775616642755,-150.0,0.00012509,2]
[420016064,1775616642764,-150.0,0.00012518,2]
[420016065,1775616642773,-420.0,0.00012521,2]
[420016066,1775616642783,-150.0,0.00012525,2]
[420016067,1775616642791,-150.0,0.00012526,2]
[420016068,1775616642800,-150.0,0.00012532,2]
[420016069,1775616642810,-150.0,0.00012532,2]
[420016070,1775616642819,-636.29,0.00012543,2]
[420016071,1775616642828,-150.0,0.00012553,2]
[420016072,1775616642837,-150.0,0.00012553,2]
[420016074,1775616642847,-150.0,0.0001256,2]
[420016075,1775616642856,-150.0,0.00012563,2]
[420016076,1775616642865,-150.0,0.00012569,2]
[420016077,1775616642874,-150.0,0.00012578,2]
[420016078,1775616642883,-255.0,0.00012581,2]
[420016079,1775616642892,-150.0,0.000126,2]
[420016080,1775616642901,-150.0,0.00012603,2]
[420016081,1775616642910,-150.0,0.00012613,2]
[420016082,1775616642919,-150.0,0.00012615,2]
[420016083,1775616642928,-150.0,0.00012615,2]
[420016084,1775616642937,-500.0,0.00012617,2]
[420016085,1775616642946,-150.0,0.00012637,2]
[420016086,1775616642955,-150.0,0.00012646,2]
[420016087,1775616642965,-150.0,0.00012646,2]
[420016088,1775616642974,-150.0,0.00012646,2]
[420016089,1775616642983,-150.0,0.00012646,2]
[420016090,1775616642992,-150.0,0.00012657,2]
[420016091,1775616643001,-1500.0,0.00012668,2]
[420016092,1775616643011,-537.33935184,0.00012668,2]
[420016093,1775616643020,-1393.05427862,0.00012668,2]
[420016094,1775616643029,-1500.0,0.00012668,2]
[420016095,1775616643039,-1500.0,0.00012668,2]
[420016096,1775616643050,-150.0,0.00012674,2]
[420016097,1775616643060,-150.0,0.00012677,2]
[420016098,1775616643069,-150.0,0.00012677,2]
[420016099,1775616643079,-150.0,0.00012689,2]
[420016100,1775616643089,-150.0,0.00012695,2]
[420016101,1775616643098,-150.0,0.00012701,2]
[420016102,1775616643107,-150.0,0.00012711,2]
[420016103,1775616643116,-150.0,0.00012714,2]
[420016104,1775616643126,-150.0,0.00012731,2]
[420016105,1775616643135,-150.0,0.00012739,2]
[420016106,1775616643145,-150.0,0.00012739,2]
[420016107,1775616643154,-150.0,0.00012745,2]
[420016108,1775616643164,-150.0,0.00012748,2]
[420016109,1775616643173,-150.0,0.0001276,2]
[420016110,1775616643183,-150.0,0.0001276,2]
[420016111,1775616643192,-150.0,0.00012774,2]
[420016112,1775616643202,-150.0,0.00012783,2]
[420016113,1775616643211,-150.0,0.00012784,2]
[420016114,1775616643220,-150.0,0.00012789,2]
[420016115,1775616643230,-150.0,0.00012801,2]
[420016116,1775616643239,-150.0,0.00012801,2]
[420016117,1775616643249,-421.73,0.00012802,2]
[420016118,1775616643258,-12373.02683027,0.00012815,2]
[420016119,1775616643268,-150.0,0.00012817,2]
[420016120,1775616643278,-636.29,0.00012817,2]
[420016121,1775616643288,-150.0,0.00012821,2]
[420016122,1775616643298,-200.0,0.00012828,2]
[420016123,1775616643307,-150.0,0.00012833,2]
[420016124,1775616643317,-408.13,0.00012839,2]
[420016125,1775616643327,-150.0,0.00012851,2]
[420016126,1775616643336,-150.0,0.00012858,2]
[420016127,1775616643345,-150.0,0.0001286,2]
[420016128,1775616643355,-150.0,0.00012863,2]
[420016129,1775616643364,-150.0,0.00012863,2]
[420016130,1775616643373,-391.89335958,0.00012868,2]
[420016131,1775616643383,-1515.28558372,0.00012868,2]
[420016132,1775616643392,-731.411563,0.00012869,2]
[420016133,1775616643402,-1465.084933,0.00012869,2]
[420016134,1775616643412,-150.0,0.00012874,2]
[420016135,1775616643421,-150.0,0.00012874,2]
[420016136,1775616643431,-150.0,0.00012877,2]
[420016137,1775616643440,-150.0,0.0001289,2]
[420016138,1775616643451,-503.45185304,0.00012891,2]
[420016139,1775616643460,-232.00571695,0.00012893,2]
[420016140,1775616643469,-155.0,0.00012893,2]
[420016141,1775616643479,-150.0,0.00012895,2]
[420016142,1775616643488,-150.0,0.00012902,2]
[420016143,1775616643498,-308.628479,0.00012917,2]
[420016144,1775616643508,-150.0,0.00012919,2]
[420016145,1775616643517,-150.0,0.00012922,2]
[420016146,1775616643526,-150.0,0.00012926,2]
[420016147,1775616643536,-150.0,0.00012926,2]
[420016148,1775616643545,-150.0,0.00012932,2]
[420016149,1775616643556,-150.0,0.00012945,2]
[420016150,1775616643565,-150.0,0.00012966,2]
[420016151,1775616643574,-150.0,0.00012969,2]
[420016152,1775616643584,-150.0,0.00012988,2]
[420016153,1775616643593,-150.0,0.00012988,2]
[420016154,1775616643603,-150.0,0.00012988,2]
[420016155,1775616643612,-150.0,0.00012988,2]
[420016156,1775616643621,-150.0,0.00012988,2]
[420016157,1775616643630,-150.0,0.00012988,2]
[420016158,1775616643640,-168.2816,0.00013,2]
[420016159,1775616643649,-150.0,0.00013006,2]
[420016160,1775616643658,-150.0,0.0001301,2]
[420016161,1775616643668,-150.0,0.0001303,2]
[420016162,1775616643677,-150.0,0.00013043,2]
[420016163,1775616643686,-150.0,0.0001305,2]
[420016164,1775616643696,-150.0,0.0001305,2]
[420016165,1775616643705,-150.0,0.00013054,2]
[420016166,1775616643714,-150.0,0.00013056,2]
[420016167,1775616643723,-150.0,0.00013073,2]
[420016168,1775616643734,-150.0,0.0001308,2]
[420016169,1775616643743,-150.0,0.00013085,2]
[420016170,1775616643753,-636.29,0.00013091,2]
[420016171,1775616643763,-150.0,0.00013098,2]
[420016172,1775616643772,-150.0,0.00013102,2]
[420016173,1775616643782,-150.0,0.00013102,2]
[420016174,1775616643792,-150.0,0.00013112,2]
[420016175,1775616643802,-150.0,0.00013112,2]
[420016176,1775616643812,-150.0,0.00013116,2]
[420016177,1775616643822,-150.0,0.00013117,2]
[420016178,1775616643832,-150.0,0.00013124,2]
[420016179,1775616643842,-150.0,0.00013142,2]
[420016180,1775616643856,-150.0,0.00013154,2]
[420016181,1775616643865,-150.0,0.00013159,2]
[420016182,1775616643875,-421.73,0.00013168,2]
[420016183,1775616643885,-150.0,0.00013174,2]
[420016184,1775616643895,-150.0,0.00013174,2]
[420016185,1775616643904,-4638.87,0.00013179,2]
[420016186,1775616643914,-150.0,0.00013186,2]
[420016187,1775616643923,-150.0,0.00013191,2]
[420016188,1775616643933,-150.0,0.00013193,2]
[420016189,1775616643943,-200.0,0.000132,2]
[420016190,1775616643952,-150.0,0.00013201,2]
[420016191,1775616643962,-150.0,0.00013216,2]
[420016192,1775616643972,-150.0,0.00013216,2]
[420016193,1775616643981,-2003.61823881,0.00013216,2]
[420016194,1775616643991,-2000.0,0.00013216,2]
[420016195,1775616644001,-1501.79789242,0.00013216,2]
[420016196,1775616644010,-150.0,0.00013228,2]
[420016197,1775616644019,-150.0,0.0001323,2]
[420016198,1775616644028,-150.0,0.00013236,2]
[420016199,1775616644037,-150.0,0.00013236,2]
[420016200,1775616644047,-150.0,0.00013244,2]
[420016201,1775616644057,-150.0,0.00013261,2]
[420016202,1775616644066,-150.0,0.00013265,2]
[420016203,1775616644076,-150.0,0.00013274,2]
[420016204,1775616644085,-12373.02683027,0.00013279,2]
[420016205,1775616644095,-150.0,0.00013281,2]
[420016206,1775616644104,-150.0,0.00013287,2]
[420016207,1775616644114,-205.36,0.00013292,2]
[420016208,1775616644123,-410.73,0.00013296,2]
[420016209,1775616644133,-150.0,0.00013298,2]
[420016210,1775616644142,-150.0,0.00013298,2]
[420016211,1775616644151,-205.36,0.000133,2]
[420016212,1775616644161,-150.0,0.00013302,2]
[420016213,1775616644171,-150.0,0.00013318,2]
[420016214,1775616644180,-150.0,0.00013329,2]
[420016215,1775616644189,-150.0,0.00013329,2]
[420016216,1775616644198,-150.0,0.00013329,2]
[420016217,1775616644207,-150.0,0.00013329,2]
[420016218,1775616644216,-150.0,0.00013339,2]
[420016219,1775616644225,-150.0,0.00013361,2]
[420016221,1775616644234,-150.0,0.00013361,2]
[420016222,1775616644243,-150.0,0.00013363,2]
[420016224,1775616644253,-636.29,0.00013365,2]
[420016225,1775616644261,-150.0,0.00013372,2]
[420016227,1775616644270,-150.0,0.00013376,2]
[420016228,1775616644280,-150.0,0.00013398,2]
[420016230,1775616644289,-150.0,0.00013407,2]
[420016232,1775616644298,-150.0,0.00013413,2]
[420016233,1775616644308,-150.0,0.00013415,2]
[420016234,1775616644317,-150.0,0.00013423,2]
[420016235,1775616644326,-150.0,0.00013423,2]
[420016236,1775616644335,-150.0,0.00013443,2]
[420016237,1775616644345,-150.0,0.00013443,2]
[420016238,1775616644354,-150.0,0.0001345,2]
[420016239,1775616644363,-150.0,0.00013451,2]
[420016240,1775616644372,-150.0,0.00013458,2]
[420016241,1775616644382,-150.0,0.00013466,2]
[420016242,1775616644391,-150.0,0.00013476,2]
[420016243,1775616644400,-150.0,0.00013485,2]
[420016244,1775616644409,-150.0,0.00013485,2]
[420016245,1775616644418,-150.0,0.00013486,2]
[420016246,1775616644428,-150.0,0.00013495,2]
[420016247,1775616644437,-150.0,0.000135,2]
[420016248,1775616644447,-408.13,0.00013515,2]
[420016249,1775616644457,-150.0,0.00013523,2]
[420016250,1775616644466,-150.0,0.00013535,2]
[420016252,1775616644476,-150.0,0.00013539,2]
[420016254,1775616644485,-150.0,0.00013543,2]
[420016257,1775616644494,-150.0,0.00013547,2]
[420016259,1775616644503,-150.0,0.00013547,2]
[420016261,1775616644513,-150.0,0.00013557,2]
[420016262,1775616644522,-150.0,0.00013557,2]
[420016263,1775616644531,-150.0,0.0001356,2]
[420016264,1775616644542,-150.0,0.00013583,2]
[420016265,1775616644552,-150.0,0.00013586,2]
[420016266,1775616644561,-281.15,0.00013587,2]
[420016267,1775616644570,-150.0,0.00013597,2]
[420016268,1775616644579,-150.0,0.00013603,2]
[420016269,1775616644588,-150.0,0.00013609,2]
[420016270,1775616644597,-150.0,0.00013609,2]
[420016271,1775616644606,-150.0,0.00013627,2]
[420016272,1775616644615,-150.0,0.00013629,2]
[420016273,1775616644624,-150.0,0.00013634,2]
[420016274,1775616644632,-636.35785208,0.00013639,2]
[420016275,1775616644642,-281.15,0.00013639,2]
[420016276,1775616644651,-2351.0,0.00013651,2]
[420016277,1775616644660,-2000.0,0.00013653,2]
[420016278,1775616644669,-159.68322175,0.00013671,2]
[420016279,1775616644679,-171.87606985,0.00013671,2]
[420016280,1775616644687,-155.87561475,0.00013671,2]
[420016281,1775616644696,-151.47235084,0.00013671,2]
[420016282,1775616644705,-150.97836575,0.00013671,2]
[420016283,1775616644714,-150.35689888,0.00013671,2]
[420016284,1775616644724,-159.46006097,0.00013671,2]
[420016285,1775616644732,-150.33084193,0.00013671,2]
[420016286,1775616644744,-150.49506649,0.00013671,2]
[420016287,1775616644753,-210.7841716,0.00013671,2]
[420016288,1775616644763,-157.71617808,0.00013671,2]
[420016289,1775616644772,-153.12246359,0.00013671,2]
[420016290,1775616644781,-281.15,0.00013691,2]
[420016291,1775616644790,-500.0,0.00013698,2]
[420016292,1775616644799,-500.0,0.00013698,2]
[420016293,1775616644809,-500.0,0.00013698,2]
[420016294,1775616644818,-500.0,0.00013698,2]
[420016295,1775616644827,-500.0,0.00013698,2]
[420016296,1775616644835,-500.0,0.00013698,2]
[420016297,1775616644845,-500.0,0.00013698,2]
[420016298,1775616644853,-500.0,0.00013698,2]
[420016299,1775616644863,-500.0,0.00013698,2]
[420016300,1775616644871,-500.0,0.00013698,2]
[420016301,1775616644881,-500.0,0.00013698,2]
[420016302,1775616644890,-504.74596653,0.00013698,2]
[420016303,1775616644900,-500.0,0.00013698,2]
[420016304,1775616644910,-500.0,0.00013698,2]
[420016305,1775616644919,-500.0,0.00013698,2]
[420016306,1775616644928,-500.0,0.00013698,2]
[420016307,1775616644937,-500.0,0.00013698,2]
[420016308,1775616644946,-500.0,0.00013698,2]
[420016309,1775616644955,-500.0,0.00013698,2]
[420016310,1775616644964,-500.0,0.00013698,2]
[420016311,1775616644973,-500.0,0.00013698,2]
[420016312,1775616644982,-499.6872898,0.00013698,2]
[420016313,1775616644991,-500.0,0.00013698,2]
[420016314,1775616645001,-500.0,0.00013698,2]
[420016315,1775616645011,-500.0,0.00013698,2]
[420016316,1775616645020,-500.0,0.00013698,2]
[420016317,1775616645029,-500.0,0.00013698,2]
[420016318,1775616645038,-500.0,0.00013698,2]
[420016319,1775616645048,-500.0,0.00013698,2]
[420016320,1775616645058,-419.40847116,0.00013698,2]
[420016321,1775616645067,-500.0,0.00013698,2]
[420016322,1775616645076,-500.0,0.00013698,2]
[420016323,1775616645085,-500.45174561,0.00013698,2]
[420016324,1775616645094,-500.0,0.00013698,2]
[420016325,1775616645103,-500.0,0.00013698,2]
[420016326,1775616645113,-500.0,0.00013698,2]
[420016327,1775616645122,-500.0,0.00013698,2]
[420016328,1775616645131,-406.01852309,0.00013698,2]
[420016329,1775616645406,-500.0,0.00013698,2]
[420016330,1775616645416,-500.0,0.00013698,2]
[420016331,1775616645426,-500.0,0.00013698,2]
[420016333,1775616645436,-500.0,0.00013698,2]
[420016335,1775616645446,-500.0,0.00013698,2]
[420016337,1775616645456,-500.0,0.00013698,2]
[420016338,1775616645465,-500.0,0.00013698,2]
[420016339,1775616645475,-500.0,0.00013698,2]
[420016340,1775616645484,-500.0,0.00013698,2]
[420016341,1775616645494,-500.0,0.00013698,2]
[420016342,1775616645504,-500.0,0.00013698,2]
[420016343,1775616645514,-500.0,0.00013698,2]
[420016344,1775616645523,-500.0,0.00013698,2]
[420016345,1775616645533,-500.0,0.00013698,2]
[420016346,1775616645543,-500.0,0.00013698,2]
[420016347,1775616645552,-500.0,0.00013698,2]
[420016348,1775616645562,-500.0,0.00013698,2]
[420016349,1775616645571,-500.0,0.00013698,2]
[420016350,1775616645580,-500.0,0.00013698,2]
[420016351,1775616645590,-500.0,0.00013698,2]
[420016352,1775616645600,-500.0,0.00013698,2]
[420016353,1775616645609,-500.0,0.00013698,2]
[420016354,1775616645618,-500.0,0.00013698,2]
[420016355,1775616645628,-500.0,0.00013698,2]
[420016356,1775616645637,-500.0,0.00013698,2]
[420016357,1775616645647,-500.0,0.00013698,2]
[420016358,1775616645656,-500.0,0.00013698,2]
[420016359,1775616645666,-506.80312562,0.00013698,2]
[420016360,1775616645675,-500.0,0.00013698,2]
[420016361,1775616645684,-500.0,0.00013698,2]
[420016362,1775616645694,-500.0,0.00013698,2]
[420016363,1775616645704,-500.0,0.00013698,2]
[420016364,1775616645713,-500.0,0.00013698,2]
[420016365,1775616645722,-500.0,0.00013698,2]
[420016366,1775616645732,-495.40376604,0.00013698,2]
[420016367,1775616645741,-500.0,0.00013698,2]
[420016369,1775616645751,-500.0,0.00013698,2]
[420016370,1775616645760,-500.0,0.00013698,2]
[420016371,1775616645768,-500.0,0.00013698,2]
[420016372,1775616645778,-500.0,0.00013698,2]
[420016373,1775616645787,-500.0,0.00013698,2]
[420016374,1775616645796,-500.0,0.00013698,2]
[420016375,1775616645805,-500.0,0.00013698,2]
[420016376,1775616645815,-500.0,0.00013698,2]
[420016377,1775616645823,-500.0,0.00013698,2]
[420016378,1775616645832,-542.71692042,0.00013698,2]
[420016379,1775616645841,-500.0,0.00013698,2]
[420016380,1775616645851,-500.0,0.00013698,2]
[420016381,1775616645860,-500.0,0.00013698,2]
[420016382,1775616645869,-501.392489,0.00013698,2]
[420016383,1775616645879,-553.39225555,0.00013698,2]
[420016385,1775616645888,-500.0,0.00013698,2]
[420016386,1775616645897,-197.481471,0.00013698,2]
[420016387,1775616645905,-500.0,0.00013698,2]
[420016388,1775616645915,-500.0,0.00013698,2]
[420016389,1775616645924,-500.0,0.00013698,2]
[420016390,1775616645933,-500.0,0.00013698,2]
[420016391,1775616645942,-500.0,0.00013698,2]
[420016392,1775616645951,-500.0,0.00013698,2]
[420016393,1775616645960,-500.0,0.00013698,2]
[420016394,1775616645970,-500.0,0.00013698,2]
[420016395,1775616645979,-500.0,0.00013698,2]
[420016396,1775616645989,-500.0,0.00013698,2]
[420016397,1775616645998,-500.0,0.00013698,2]
[420016398,1775616646007,-500.0,0.00013698,2]
[420016399,1775616646016,-500.0,0.00013698,2]
[420016400,1775616646025,-500.0,0.00013698,2]
[420016401,1775616646035,-500.0,0.00013698,2]
[420016402,1775616646044,-500.0,0.00013698,2]
[420016403,1775616646053,-500.0,0.00013698,2]
[420016404,1775616646063,-500.0,0.00013698,2]
[420016405,1775616646072,-500.0,0.00013698,2]
[420016406,1775616646082,-500.0,0.00013698,2]
[420016407,1775616646092,-500.03954585,0.00013698,2]
[420016408,1775616646102,-500.0,0.00013698,2]
[420016409,1775616646111,-500.0,0.00013698,2]
[420016410,1775616646120,-500.0,0.00013698,2]
[420016411,1775616646130,-500.0,0.00013698,2]
[420016412,1775616646139,-500.0,0.00013698,2]
[420016413,1775616646148,-467.66178343,0.00013698,2]